Cogmind - Beta 14 *** ADVENTURER MODE // 2024.09.10 @ 17:50:40 Player: LegoMDS Result: Destroyed by P-70 Sage with High-powered Shock Rifle Performance ------------- Evolutions (6) 3000 Regions Visited (11) 2200 Robots Destroyed (57) 285 Value Destroyed (2652) 2652 Prototype IDs (33) 660 Alien Tech Used (0) 0 Bonus (238) 238 TOTAL SCORE: 9035 Bonus ------- Follower Combat Kills 109 Aligned with FarCom 300 Friendly Fire -171 Cogmind --------- Core Integrity 0/1150 Matter 256/300 Energy 0/170 System Corruption 4% Temperature Cool (2) Movement Walking (190) Ox1 Location -4/Factory Parts ------- > --- POWER (2) -------- Light Antimatter Reactor > --- PROPULSION (4) --- Flexi-carbon Leg > --- UTILITY (8) ------ Medium Storage Unit Advanced Targeting Computer Advanced Reaction Control System Graphene Brace Improved Force Field Point Defense System Hacking Suite > --- WEAPON (5) ------- (None) > --- INVENTORY (10) --- Light Antimatter Reactor Improved Signal Interpreter Advanced Targeting Computer Nanoactuators Advanced Drone Bay (2/2) Thief Drone Bay (3/3) Peak State ------------ > --- POWER ------------ Light Nuclear Core Micro Fission Core > --- PROPULSION ------- Potential Leg > --- UTILITY ---------- Advanced Heat Sink Medium Storage Unit Advanced Targeting Computer Transmission Jammer Improved Medium Armor Plating Graphene Brace Hacking Suite System Shield > --- WEAPON ----------- Wave Gun Advanced Plasma Cannon Hypervelocity Gauss Rifle Hypervelocity Gauss Cannon Chainsword > --- INVENTORY -------- Improved Signal Interpreter Advanced Particle Charger Nanoactuators Improved Force Field Point Defense System Advanced Drone Bay Thief Drone Bay Improved Datajack Impact Mace [Rating: 81] Favorites ----------- Power Ion Engine Engine Ion Engine Power Core Fission Core Reactor Light Antimatter Reactor Propulsion Potential Leg Leg Potential Leg Wheel Armored Huge Wheel Flight Unit Nuclear Pulse Array Utility Medium Storage Unit Device ECM Suite Storage Medium Storage Unit Processor Advanced Targeting Computer Hackware Hacking Suite Protection Improved Medium Armor Plating Weapon Heavy Battle Rifle Energy Gun Plasma Rifle Energy Cannon Advanced Plasma Cannon Ballistic Gun Heavy Battle Rifle Ballistic Cannon Flak Cannon Launcher Missile Launcher Impact Weapon Impact Mace Slashing Weapon Chainsword Special Melee Weapon Improved Datajack Build | -11 -10 -10 -10 -9 -8 -7 -6 -5 -5 -5 -4 ------- Run | Yrd Mat Min Exi Min Mat Fac Fac Fac Upp Upp Fac Slots Evolved 12 | . . . . . 4 2 2 2 . . 2 Power 1 | . . . . . . . . . . . 1 Propulsion 2 | . . . . . 1 . . . . . 1 Utility 6 | . . . . . 2 1 2 1 . . . Weapon 3 | . . . . . 1 1 . 1 . . . Parts Attached 96 | 5 5 1 2 1 10 11 11 3 . 4 43 Power 12 | 1 2 . . 1 1 1 1 . . . 5 Engine 6 | 1 2 . . 1 1 1 . . . . . Core 5 | . . . . . . . 1 . . . 4 Reactor 1 | . . . . . . . . . . . 1 Propulsion 23 | 2 . . 2 . 4 4 . . . 2 9 Treads . | . . . . . . . . . . . . Leg 19 | 2 . . 2 . 3 3 . . . 2 7 Wheel 1 | . . . . . . 1 . . . . . Hover . | . . . . . . . . . . . . Flight 3 | . . . . . 1 . . . . . 2 Utility 32 | . 3 . . . 2 3 5 1 . 1 17 Device 21 | . 1 . . . 1 . 4 1 . . 14 Storage 3 | . 2 . . . . . . . . . 1 Processor 2 | . . . . . 1 1 . . . . . Hackware 2 | . . . . . . . 1 . . 1 . Protection 4 | . . . . . . 2 . . . . 2 Artifact . | . . . . . . . . . . . . Weapon 29 | 2 . 1 . . 3 3 5 2 . 1 12 Energy Gun 5 | . . . . . . . 2 1 . . 2 Energy Cannon 4 | . . . . . . . . . . . 4 Ballistic Gun 10 | 2 . 1 . . 3 2 1 . . . 1 Ballistic Cannon 3 | . . . . . . . . 1 . 1 1 Launcher 1 | . . . . . . . . . . . 1 Special Weapon . | . . . . . . . . . . . . Impact Weapon 2 | . . . . . . . 1 . . . 1 Slashing Weapon 3 | . . . . . . 1 1 . . . 1 Piercing Weapon . | . . . . . . . . . . . . Special Melee Weapon 1 | . . . . . . . . . . . 1 Unidentified Prototypes 7 | . 1 . . . 1 1 3 . . . 1 Parts Lost 33 | . . . . . . . . . 5 . 28 Power 4 | . . . . . . . . . 1 . 3 Propulsion 8 | . . . . . . . . . . . 8 Utility 10 | . . . . . . . . . 1 . 9 Weapon 11 | . . . . . . . . . 3 . 8 Highest Loss Streak 11 | . . . . . . . . . 5 . 11 To Critical Strikes . | . . . . . . . . . . . . Average Slot Usage (%) 89 | . 91 100 100 100 99 97 99 100 99 82 70 Engine 5 | . 14 14 14 14 9 7 1 . . . . Core 2 | . . . . . . . 4 5 4 . 4 Leg 18 | . 28 28 28 28 27 23 20 17 17 17 7 Device 16 | . 6 14 14 14 18 15 19 23 23 23 16 Storage 7 | . 13 14 14 14 9 7 6 5 5 5 4 Processor 4 | . . . . . 9 7 6 5 5 5 5 Hackware 4 | . . . . . . . 6 5 5 11 9 Protection 2 | . . . . . . 7 6 5 4 . 2 Energy Gun 1 | . . . . . . . 4 5 4 . 2 Ballistic Gun 14 | . 28 28 28 28 26 23 14 11 10 . 1 Ballistic Cannon 2 | . . . . . . . . 5 5 11 3 Slashing Weapon 2 | . . . . . . 4 6 5 5 5 3 Peak Build Rating 81 | 5 9 12 30 32 43 56 71 79 78 62 81 Average Rating 49 | 3 6 10 20 31 40 50 67 77 77 51 64 On Entrance 36 | . 5 8 12 30 32 43 56 70 78 56 51 Naked Turns . | . . . . . . . . . . . . Heaviest Build 58 | 8 23 22 22 25 32 43 48 55 55 32 58 Greatest Support 85 | 20 20 20 60 60 75 78 78 78 78 38 85 Greatest Overweight (x) 19 | . 1 1 1 . . 1 . . . . 19 Average Overweight (x) . | . . . . . . . . . . . . Largest Inventory Capacity 10 | 5 10 10 10 10 10 10 10 10 10 10 10 Average Capacity 9 | 5 8 10 10 10 10 10 10 10 10 10 9 Most Carried 10 | 4 8 10 10 10 10 10 10 10 9 8 10 Average Carried 8 | 2 4 9 10 9 7 9 9 8 8 7 8 Final Capacity 10 | 5 10 10 10 10 10 10 10 10 10 10 10 Final Carried 10 | 3 8 10 10 10 10 10 10 8 9 8 7 Class Distribution -------------------- 29% | Mutant 28% | Hacker-Tank 24% | Hacker-Mutant 12% | Skirmisher 5% | Hacker-Skirmisher Dominant Class ---------------- Mutant | -10/Materials Mutant | -10/Mines Mutant | -10/Exiles Mutant | -9/Mines Skirmisher | -8/Materials Skirmisher | -7/Factory Hacker-Tank | -6/Factory Hacker-Tank | -5/Factory Hacker-Tank | -5/Upper Caves Hacker-Mutant | -5/Upper Caves Hacker-Mutant | -4/Factory Resources | -11 -10 -10 -10 -9 -8 -7 -6 -5 -5 -5 -4 ----------- Run | Yrd Mat Min Exi Min Mat Fac Fac Fac Upp Upp Fac Matter Collected 1952 | 224 81 117 . 54 94 96 343 115 132 40 656 Remotely . | . . . . . . . . . . . . Salvage Created 2562 | . 172 142 . 187 56 167 404 191 200 . 1043 Parts 93 | . 8 7 . 6 4 10 9 7 1 . 41 Haulers Intercepted . | . . . . . . . . . . . . Recyclers Shooed 2 | . . . . . . . . . . . 2 Parts Field Recycled . | . . . . . . . . . . . . Retrieved Matter . | . . . . . . . . . . . . Parts Self-Destructed . | . . . . . . . . . . . . Prevented . | . . . . . . . . . . . . Kills | -11 -10 -10 -10 -9 -8 -7 -6 -5 -5 -5 -4 ------- Run | Yrd Mat Min Exi Min Mat Fac Fac Fac Upp Upp Fac Combat Hostiles Destroyed 53 | . 2 5 . 4 1 4 8 3 4 . 22 Melee 10 | . . . . . . . 3 1 1 . 5 Guns 25 | . 2 5 . 4 1 4 5 2 1 . 1 Cannons 11 | . . . . . . . . . 2 . 9 AOE 7 | . . . . . . . . . . . 7 Classes Destroyed 10 | . 3 1 . 1 1 1 . . 1 . 2 Builder 1 | . . . . . . . . . . . 1 Recycler 2 | . 1 . . . . . . . . . 1 Watcher 1 | . 1 . . . . . . . . . . Swarmer 11 | . . 3 . . . . 1 . . . 7 Grunt 25 | . 2 2 . 3 . 2 4 3 2 . 7 Brawler 2 | . . . . 1 . . 1 . . . . Duelist 1 | . . . . . . . . . . . 1 Sentry 5 | . . . . . 1 1 2 . . . 1 Hunter 4 | . . . . . . . . . 2 . 2 Programmer 5 | . . . . . . 1 . . . . 4 Best Kill Streak 10 | . 3 3 . 2 1 2 3 2 2 . 10 Combat Bots Only 9 | . 2 3 . 2 1 2 3 2 2 . 9 Max Kills in Single Turn 4 | . 1 1 . 2 1 2 1 1 1 . 4 Gunslinging 1 | . . . . 1 . 1 . . . . . Exploded 3 | . . . . . . . . . . . 3 Melee 1 | . . . . . . . 1 1 1 . 1 Uniques/NPCs Destroyed . | . . . . . . . . . . . . Combat | -11 -10 -10 -10 -9 -8 -7 -6 -5 -5 -5 -4 -------- Run | Yrd Mat Min Exi Min Mat Fac Fac Fac Upp Upp Fac Hostile Shots Fired 723 | . 14 23 . 11 4 20 124 21 52 . 454 Missed 248 | . 7 4 . 2 . 6 64 12 17 . 136 Damage Taken 6365 | . 113 184 . 88 63 200 459 130 526 . 4602 Core 1402 | . 24 16 . 31 25 25 13 45 70 . 1153 Absorbed by Shields 64 | . . . . . . . . . . . 64 Ignored by Resistances 1862 | . 34 57 . 26 18 61 145 36 146 . 1339 Core Remaining (%) 91 | 100 . . . 71 95 96 98 . . 88 . Volleys Fired 120 | . 14 14 . 6 3 7 24 2 13 . 37 Largest 4 | . 2 2 . 2 3 3 3 4 4 . 4 Hottest 273 | . 40 40 . 53 73 84 136 180 180 . 273 Shots Fired 277 | . 28 28 . 12 9 18 58 8 41 . 75 Gun 203 | . 28 28 . 12 9 18 58 6 28 . 16 Cannon 71 | . . . . . . . . 2 13 . 56 Launcher 3 | . . . . . . . . . . . 3 Special . | . . . . . . . . . . . . Kinetic 222 | . 28 28 . 12 9 18 42 6 31 . 48 Thermal 52 | . . . . . . . 16 2 10 . 24 Explosive 3 | . . . . . . . . . . . 3 Electromagnetic . | . . . . . . . . . . . . Robot Hit Streak 23 | . 11 5 . 10 7 12 15 23 17 . 19 Robot Miss Streak 6 | . 1 2 . 1 2 4 3 . 3 . 6 Penetration Max 1 | . . . . . . . . . . . 1 Secondary Targets 4 | . . 1 . 1 . 1 1 . . . . Max Gunslinging Chain 1 | . . 1 . 1 . 1 1 . . . . Shots Hit Robots 294 | . 23 19 . 10 7 15 57 16 39 . 108 Core Hits 183 | . 9 10 . 5 1 13 33 9 36 . 67 Critical Kills 3 | . . . . . . 1 . . . . 2 Critical Parts Destroyed 7 | . . . . . . 1 . . . . 6 Critical Strikes 19 | . . . . . . 2 1 3 . . 13 Burn 1 | . . . . . . . 1 . . . . Destroy 10 | . . . . . . 2 . . . . 8 Sever 8 | . . . . . . . . 3 . . 5 Melee Attacks 76 | . . . . . . . 6 13 6 . 51 Impact 11 | . . . . . . . . . . . 11 Slashing 65 | . . . . . . . 6 13 6 . 40 Piercing . | . . . . . . . . . . . . Sneak Attacks 3 | . . . . . . . . 1 . . 2 Combat Hostiles 1 | . . . . . . . . 1 . . . Follow-up Attacks . | . . . . . . . . . . . . Damage Inflicted 7665 | . 242 199 . 156 107 300 1376 637 965 . 3683 Guns 2836 | . 242 199 . 156 107 300 1143 66 373 . 250 Cannons 1541 | . . . . . . . . 38 308 . 1195 Explosions 545 | . . . . . . . . . . . 545 Melee 2743 | . . . . . . . 233 533 284 . 1693 Ramming . | . . . . . . . . . . . . Kinetic 3245 | . 242 199 . 156 107 300 832 61 551 . 797 Thermal 1132 | . . . . . . . 311 43 130 . 648 Explosive 545 | . . . . . . . . . . . 545 Electromagnetic . | . . . . . . . . . . . . Impact 356 | . . . . . . . . . . . 356 Slashing 2387 | . . . . . . . 233 533 284 . 1337 Piercing . | . . . . . . . . . . . . Highest Corruption 5 | . . . . . 5 . . . . . 4 Average Corruption 1 | . . . . . 5 . . . . . 1 Corruption Purged . | . . . . . . . . . . . . Corruption Blocked . | . . . . . . . . . . . . Effects 21 | . . . . . 7 . . . . . 14 Message Errors 6 | . . . . . 2 . . . . . 4 Matter Fused 7 | . . . . . 3 . . . . . 4 Energy Discharges 3 | . . . . . 1 . . . . . 2 Data Loss (minor) 3 | . . . . . . . . . . . 3 Data Loss (major) 2 | . . . . . 1 . . . . . 1 Overload Shots . | . . . . . . . . . . . . Overflow Damage 311 | . . . . . . . 3 24 115 . 169 Projectiles 50 | . . . . . . . . . . . 50 Explosions 14 | . . . . . . . . . . . 14 Melee 247 | . . . . . . . 3 24 115 . 105 Knockbacks 37 | . . . . . . . . 2 7 . 28 Impact 3 | . . . . . . . . . . . 3 Kinetic 32 | . . . . . . . . 2 7 . 23 Secondary 2 | . . . . . . . . . . . 2 Self-Inflicted Damage . | . . . . . . . . . . . . Shots . | . . . . . . . . . . . . Rammed . | . . . . . . . . . . . . Targets Rammed . | . . . . . . . . . . . . Kicked . | . . . . . . . . . . . . Crushed . | . . . . . . . . . . . . Highest Temperature 429 | . 12 18 . 80 . 4 342 33 66 . 429 Average Temperature 78 | . 5 9 . 34 . 4 117 22 28 . 97 Received Heat Transfer 1622 | . 48 114 . 63 18 90 198 90 156 . 845 Effects 3 | . . . . . . . 1 . . . 2 Shutdowns 1 | . . . . . . . . . . . 1 Energy Bleed 1 | . . . . . . . 1 . . . . Short Circuit 1 | . . . . . . . . . . . 1 Siege Activations . | . . . . . . . . . . . . Robots Corrupted . | . . . . . . . . . . . . Combat Hostiles . | . . . . . . . . . . . . Parts Fried . | . . . . . . . . . . . . Impact Corruptions . | . . . . . . . . . . . . Robots Melted . | . . . . . . . . . . . . Combat Hostiles . | . . . . . . . . . . . . Parts Melted 1 | . . . . . . . 1 . . . . Heat Transferred 2083 | . . . . . . . 800 100 300 . 883 Parts Sabotaged . | . . . . . . . . . . . . Parts Stolen . | . . . . . . . . . . . . Parts Stripped . | . . . . . . . . . . . . Power Chain Reactions . | . . . . . . . . . . . . Alert | -11 -10 -10 -10 -9 -8 -7 -6 -5 -5 -5 -4 ------- Run | Yrd Mat Min Exi Min Mat Fac Fac Fac Upp Upp Fac Peak Influence 314 | . 96 135 . 127 119 215 212 96 . . 314 Initial 46 | . . . . . 41 46 5 24 . . 14 Average 72 | . 38 74 . 90 91 100 73 49 . . 72 Maximum Alert Level 1 | . . . . . . 1 1 . . . 1 Low Security (%) 96 | 100 100 100 . 100 100 94 94 100 . . 94 Level 1 3 | . . . . . . 5 5 . . . 5 Level 2 . | . . . . . . . . . . . . Level 3 . | . . . . . . . . . . . . Level 4 . | . . . . . . . . . . . . Level 5 . | . . . . . . . . . . . . High Security . | . . . . . . . . . . . . Max Security . | . . . . . . . . . . . . Squads Dispatched 9 | . . . . . 1 2 1 . . . 5 Investigation 4 | . . . . . 1 1 1 . . . 1 Extermination 4 | . . . . . . 1 . . . . 3 Reinforcement 1 | . . . . . . . . . . . 1 Assault . | . . . . . . . . . . . . Garrison . | . . . . . . . . . . . . Intercept . | . . . . . . . . . . . . Searches Triggered . | . . . . . . . . . . . . Construction Impeded . | . . . . . . . . . . . . Haulers Reinforced . | . . . . . . . . . . . . Active Scanning Responses . | . . . . . . . . . . . . Cargo Convoy Interrupts . | . . . . . . . . . . . . Stealth | -11 -10 -10 -10 -9 -8 -7 -6 -5 -5 -5 -4 --------- Run | Yrd Mat Min Exi Min Mat Fac Fac Fac Upp Upp Fac Distress Signals 4 | . . . . . . . 1 . . . 3 Communications Jammed 2 | . . . . . . . . . . . 2 Distress Signals 2 | . . . . . . . . . . . 2 Times Spotted 87 | . 5 6 . 5 2 4 11 7 10 . 37 Peak Tracking Total 9 | . 2 3 . 3 1 2 4 4 9 . 9 Tactical Retreats 7 | . . 1 . . . . . 2 . . 4 Traps | -11 -10 -10 -10 -9 -8 -7 -6 -5 -5 -5 -4 ------- Run | Yrd Mat Min Exi Min Mat Fac Fac Fac Upp Upp Fac Traps Triggered 8 | . 2 . . . 2 1 1 . . . 2 Indirectly . | . . . . . . . . . . . . Trap Hack Attempts . | . . . . . . . . . . . . Triggered . | . . . . . . . . . . . . Disarmed . | . . . . . . . . . . . . Reprogrammed . | . . . . . . . . . . . . Reused . | . . . . . . . . . . . . Traps Extracted . | . . . . . . . . . . . . Installed . | . . . . . . . . . . . . Triggered . | . . . . . . . . . . . . Machines | -11 -10 -10 -10 -9 -8 -7 -6 -5 -5 -5 -4 ---------- Run | Yrd Mat Min Exi Min Mat Fac Fac Fac Upp Upp Fac Machines Disabled 1 | . . . . . . . 1 . . . . Max in Single Turn 1 | . . . . . . . 1 . . . . Garrison Access 1 | . . . . . . . . . . . 1 Machines Repaired . | . . . . . . . . . . . . Machines Dismantled . | . . . . . . . . . . . . Machines Sabotaged . | . . . . . . . . . . . . Overloaded Fab Kills . | . . . . . . . . . . . . Hacking | -11 -10 -10 -10 -9 -8 -7 -6 -5 -5 -5 -4 --------- Run | Yrd Mat Min Exi Min Mat Fac Fac Fac Upp Upp Fac Machines Accessed 22 | . 2 1 1 . 3 5 5 1 . . 4 Terminals 15 | . 2 . . . 2 4 4 . . . 3 Fabricators . | . . . . . . . . . . . . Repair Stations 2 | . . . . . . 1 . 1 . . . Recycling Units . | . . . . . . . . . . . . Scanalyzers 2 | . . . . . 1 . 1 . . . . Garrison Access 1 | . . . . . . . . . . . 1 Total Hacks 48 | . 4 1 1 . 6 9 9 2 . . 16 Successful 22 | . 3 1 1 . 3 3 3 . . . 8 Failed 26 | . 1 . . . 3 6 6 2 . . 8 Catastrophic 4 | . . . . . . 2 2 . . . . Database Lockouts . | . . . . . . . . . . . . Manual 1 | . . . 1 . . . . . . . . Terminals 34 | . 4 . . . 3 8 6 . . . 13 Fabricators . | . . . . . . . . . . . . Repair Stations 3 | . . . . . . 1 . 2 . . . Recycling Units . | . . . . . . . . . . . . Scanalyzers 6 | . . . . . 3 . 3 . . . . Garrison Access 3 | . . . . . . . . . . . 3 Terminal Hacks 18 | . 3 1 1 . 2 3 1 . . . 7 Record 7 | . . . . . . 1 . . . . 6 Part Schematic 1 | . . . . . . 1 . . . . . Robot Analysis 1 | . 1 . . . . . . . . . . Prototype ID Bank 1 | . . . . . . . . . . . 1 Open Door 1 | . . 1 . . . . . . . . . Branch Access Points 1 | . . . . . 1 . . . . . . Dispatch Records 1 | . . . . . 1 . . . . . . Hauler Manifests 2 | . 2 . . . . . . . . . . Registered Components 2 | . . . . . . 1 1 . . . . Derelict Proto ID Bank 1 | . . . 1 . . . . . . . . Fabricator Hacks . | . . . . . . . . . . . . Repair Station Hacks . | . . . . . . . . . . . . Recycling Unit Hacks . | . . . . . . . . . . . . Scanalyzer 3 | . . . . . 1 . 2 . . . . Insert Component 2 | . . . . . 1 . 1 . . . . Analyze 1 | . . . . . . . 1 . . . . Garrison Access Hacks 1 | . . . . . . . . . . . 1 Seal Access 1 | . . . . . . . . . . . 1 Unauthorized Hacks . | . . . . . . . . . . . . Terminals . | . . . . . . . . . . . . Fabricators . | . . . . . . . . . . . . Repair Stations . | . . . . . . . . . . . . Recycling Units . | . . . . . . . . . . . . Scanalyzers . | . . . . . . . . . . . . Garrison Access . | . . . . . . . . . . . . Data Cores Recovered . | . . . . . . . . . . . . Used . | . . . . . . . . . . . . Hacking Detections 15 | . 1 . . . 2 4 5 1 . . 2 Full Trace Events 4 | . . . . . 1 1 1 . . . 1 Feedback Events . | . . . . . . . . . . . . Feedback Blocked . | . . . . . . . . . . . . Robot Schematics Acquired . | . . . . . . . . . . . . Robots Built . | . . . . . . . . . . . . Authchips . | . . . . . . . . . . . . Time . | . . . . . . . . . . . . Total Robot Build Rating . | . . . . . . . . . . . . Part Schematics Acquired 2 | . . . . . . 1 1 . . . . Parts Built . | . . . . . . . . . . . . Authchips . | . . . . . . . . . . . . Time . | . . . . . . . . . . . . Total Part Build Rating . | . . . . . . . . . . . . Parts Repaired . | . . . . . . . . . . . . Time . | . . . . . . . . . . . . Parts Recycled . | . . . . . . . . . . . . Recycled Matter . | . . . . . . . . . . . . Retrieved Matter . | . . . . . . . . . . . . Retrieved Components . | . . . . . . . . . . . . Parts Scanalyzed 2 | . . . . . 1 . 1 . . . . Part Schematics Acquired 1 | . . . . . . . 1 . . . . Parts Damaged 1 | . . . . . 1 . . . . . . Bothacking | -11 -10 -10 -10 -9 -8 -7 -6 -5 -5 -5 -4 ------------ Run | Yrd Mat Min Exi Min Mat Fac Fac Fac Upp Upp Fac Used RIF Installer . | . . . . . . . . . . . . Robots Hacked . | . . . . . . . . . . . . Non-combat . | . . . . . . . . . . . . Combat . | . . . . . . . . . . . . Robot Hacks Applied . | . . . . . . . . . . . . Relay Couplers Released . | . . . . . . . . . . . . Fabnet Peak Effective % . | . . . . . . . . . . . . Robots Rewired . | . . . . . . . . . . . . Allies Hacked . | . . . . . . . . . . . . Hacks Repelled . | . . . . . . . . . . . . Allies | -11 -10 -10 -10 -9 -8 -7 -6 -5 -5 -5 -4 -------- Run | Yrd Mat Min Exi Min Mat Fac Fac Fac Upp Upp Fac Total Allies 3 | . . . . 3 . . . . . . . Largest Group 3 | . . . . 3 3 2 1 . . . . Highest-Rated Group 40 | . . . . 40 40 32 16 . . . . Highest-Rated Ally 16 | . . . . 16 16 16 16 . . . . Total Orders 4 | . . . . . . 4 . . . . . STAY 2 | . . . . . . 2 . . . . . FOLLOW 2 | . . . . . . 2 . . . . . Ally Attacks 38 | . . . . 8 3 9 18 . . . . Total Damage 382 | . . . . 97 31 69 185 . . . . Kills 4 | . . . . 1 1 . 2 . . . . Allies Corrupted 1 | . . . . . 1 . . . . . . Allies Melted . | . . . . . . . . . . . . Intel | -11 -10 -10 -10 -9 -8 -7 -6 -5 -5 -5 -4 ------- Run | Yrd Mat Min Exi Min Mat Fac Fac Fac Upp Upp Fac Robot Analysis Total 1 | . 1 . . . . . . . . . . Derelict Logs Recovered 3 | . . 1 . . . . . . 2 . . Drone Launches . | . . . . . . . . . . . . Drone Recoveries . | . . . . . . . . . . . . Exploration | -11 -10 -10 -10 -9 -8 -7 -6 -5 -5 -5 -4 ------------- Run | Yrd Mat Min Exi Min Mat Fac Fac Fac Upp Upp Fac Turns Passed 5786 | 59 435 613 379 236 307 403 555 267 727 76 1729 Spaces Moved 3693 | 45 283 344 257 173 236 353 418 168 656 59 701 Core 26 | 10 . . . . . . . . . . 16 Treads . | . . . . . . . . . . . . Legs 3667 | 35 283 344 257 173 236 353 418 168 656 59 685 Wheels . | . . . . . . . . . . . . Hover . | . . . . . . . . . . . . Flight . | . . . . . . . . . . . . Fastest Speed 50 | 50 120 120 90 90 100 100 100 100 100 120 70 Average Speed 122 | 104 120 158 132 90 100 100 100 100 100 120 171 Slowest Speed 1000 | 120 190 190 190 90 105 170 100 100 100 120 1000 Overloaded Moves 60 | . . . . . . . . . . . 60 Propulsion Burnouts . | . . . . . . . . . . . . Robots Hopped . | . . . . . . . . . . . . Cave-ins Triggered . | . . . . . . . . . . . . Exploration Rate (%) 33 | 3 48 69 67 47 26 10 13 4 85 11 19 Regions Visited 11 Branch Regions 5 Pre-discovered Areas 1 | . . 1 . . . . . . . . . Known Exits Taken . | . . . . . . . . . . . . Unknown Exits Taken 11 | 1 1 1 1 1 1 1 1 1 1 1 . Scrap Searched 5 | . . . . 1 . . . . 3 1 . Spaces Dug 5 | . . . . . . . . . . . 5 Terrain Destroyed 22 | . . . . . . . . . . . 22 Melee 5 | . . . . . . . . . . . 5 Projectile 1 | . . . . . . . . . . . 1 AOE 16 | . . . . . . . . . . . 16 Terrain Rammed . | . . . . . . . . . . . . Walls Destroyed . | . . . . . . . . . . . . Machines Disabled . | . . . . . . . . . . . . Actions | -11 -10 -10 -10 -9 -8 -7 -6 -5 -5 -5 -4 --------- Run | Yrd Mat Min Exi Min Mat Fac Fac Fac Upp Upp Fac Total 4623 | 57 354 387 296 242 302 390 503 249 693 63 1087 Wait 515 | . 38 26 36 61 40 3 26 58 18 . 209 Move 3682 | 44 282 343 256 172 235 352 417 167 655 58 701 Hop . | . . . . . . . . . . . . Pick Up 74 | 8 11 2 . 1 9 5 9 3 1 1 24 Fast Attach 27 | . . 1 . . . 5 2 . . . 19 Attach 46 | 5 4 . . . 8 1 6 2 . 2 18 Detach 4 | . . . . . . . 1 . . . 3 Swap 24 | . 1 . 2 1 2 5 3 1 . 2 7 Drop 55 | . 4 1 2 1 5 12 9 3 . . 18 Fire 120 | . 14 14 . 6 3 7 24 2 13 . 37 Melee 76 | . . . . . . . 6 13 6 . 51 Ram . | . . . . . . . . . . . . Kick . | . . . . . . . . . . . . Crush . | . . . . . . . . . . . . Escape Stasis . | . . . . . . . . . . . . Rewire . | . . . . . . . . . . . . Trap . | . . . . . . . . . . . . Miscellaneous . | . . . . . . . . . . . . Route ------- -11/Scrapyard -10/Materials (discovered 2 exits: [*Mat] / *Min) -10/Mines (discovered 2 exits: [*Mat] / *Exi) -10/Exiles -9/Mines -8/Materials -7/Factory -6/Factory -5/Factory -5/Upper Caves -5/Upper Caves -4/Factory History --------- Turn | Location | Event 15 | -11/Scrapyard | Discovered new exit (range 14) 60 | -11/Scrapyard | Entered Materials 228 | -10/Materials | Discovered new exit (range 16) 301 | -10/Materials | Build established: Mutant 463 | -10/Materials | Discovered new exit (range 16) 495 | -10/Materials | Entered Mines 532 | -10/Mines | Discovered new exit (range 5) 548 | -10/Mines | Found the Drone Emporium 556 | -10/Mines | Found Prototype Device 576 | -10/Mines | Found a damaged Exp. Sensor Array with a note attached 579 | -10/Mines | Found Prototype Device 708 | -10/Mines | Learned location of Zion (-6) 731 | -10/Mines | A weapon hastily lodged in a ceiling crevice suddenly fell to the ground 1100 | -10/Mines | Deemed a non-threat by the Exiles lab entrance 1100 | -10/Mines | Discovered new exit (range 5) 1108 | -10/Mines | Entered Exiles 1156 | -10/Exiles | Met 8R-AWN 1186 | -10/Exiles | Met EX-HEX 1240 | -10/Exiles | Met EX-BIN 1262 | -10/Exiles | Aligned with FarCom system 1264 | -10/Exiles | Given EX-Vault access code 1308 | -10/Exiles | Opened EX-Vault 1316 | -10/Exiles | Found Potential Leg 1318 | -10/Exiles | Found Potential Leg 1339 | -10/Exiles | Warned to stay clear of 0b10 Research branches 1352 | -10/Exiles | Exiles lab attacked by MAIN.C 1479 | -10/Exiles | Discovered new exit (range 10) 1487 | -10/Exiles | Left Exiles lab with Potential Leg 1487 | -10/Exiles | Entered Mines 1494 | -9/Mines | Met a Derelict bent on vengeance 1515 | -9/Mines | Assisted by bots powering up and referring to "LRC-V3" 1703 | -9/Mines | Discovered new exit (range 7) 1723 | -9/Mines | Entered Materials 1723 | -8/Materials | Accompanied by 3 allies 1723 | -8/Materials | Evolved 4 slots: Propulsion x1, Utility x2, Weapon x1 1815 | -8/Materials | Identified Exp. Sensor Array 2016 | -8/Materials | Discovered new exit (range 5) 2030 | -8/Materials | Entered Factory 2030 | -7/Factory | Accompanied by 2 allies 2030 | -7/Factory | Evolved 2 slots: Utility x1, Weapon x1 2051 | -7/Factory | Build established: Skirmisher 2421 | -7/Factory | Discovered new exit (range 10) 2433 | -7/Factory | Entered another Factory area 2433 | -6/Factory | Accompanied by 1 ally 2433 | -6/Factory | Evolved 2 slots: Utility x2 2567 | -6/Factory | Identified Thief Drone Bay 2895 | -6/Factory | Spotted B-75 Beast 2897 | -6/Factory | Build established: Hacker-Tank 2981 | -6/Factory | Discovered new exit (range 5) 2988 | -6/Factory | Entered another Factory area 2988 | -5/Factory | Evolved 2 slots: Utility x1, Weapon x1 3246 | -5/Factory | Discovered new exit (range 5) 3255 | -5/Factory | Entered Upper Caves 3342 | -5/Upper Caves | Learned Factory emergency access door positions 3396 | -5/Upper Caves | Encountered a Warlord checkpoint 3957 | -5/Upper Caves | Discovered new exit (range 5) 3958 | -5/Upper Caves | Learned location of 1 exit from Proximity Caves 3973 | -5/Upper Caves | Attracted the attention of an 0b10 outpost 3982 | -5/Upper Caves | Entered another Upper Caves area 4009 | -5/Upper Caves | Lost 5 parts (1p1u3w) 4047 | -5/Upper Caves | Discovered new exit (range 10) 4058 | -5/Upper Caves | Entered Factory 4058 | -4/Factory | Evolved 2 slots: Power x1, Propulsion x1 4376 | -4/Factory | Spotted B-86 Titan 4394 | -4/Factory | Destroyed 9 combat bots 4425 | -4/Factory | Lost 3 parts (1u2w) 4532 | -4/Factory | Lost 6 parts (1p2n1u2w) 4618 | -4/Factory | Lost 3 parts (2n1u) 4685 | -4/Factory | Build established: Hacker-Mutant 5403 | -4/Factory | Found Prototype Device 5403 | -4/Factory | Identified Exp. ECM Suite 5626 | -4/Factory | Core integrity fell below 50% 5662 | -4/Factory | Core integrity fell below 20% 5702 | -4/Factory | Lost 11 parts (1p3n5u2w) 5787 | -4/Factory | Destroyed by P-70 Sage with High-powered Shock Rifle Last Messages --------------- K-01 Serf collects debris. Acquired Imp. Force Field. K-01 Serf collects debris. Acquired Thief Drone Bay. K-01 Serf collects debris. Acquired Med. Storage Unit. Dropped Broken Hyp. Gauss Rifle. K-01 Serf collects debris. Acquired Lgt. Antimatter Reactor. Acquired 73 matter. K-01 Serf collects debris. System corrupted: Matter fused (-10). Acquired Adv. Targeting Computer. Acquired 77 matter. Acquired Adv. Reaction Control System. Subcomponent Replicator disabled. Power Sword destroyed. System corrupted: Component data lost. P-70 Sage resets R-10 Processor, system corruption cleaned. Map ----- +----------------------------------------------------+ | """ """ """ """ " | | ^ ## | | """ """ !! ######### | | """ """ !!! ^!! #???????# | | """ """ !!! % ######### ! | | """ """ !!! ! | | ! ! | | % % | | ### #########% | | ###??????# #T ###??#= | | ###??????????????# #??# | | ?????????????????# #??# " | | ?????????????????# #??# ####+## | | ?????????????????# #### #% ^ | | ?????????????????# p # % | | ?????????????????######## # !% | | ????????????????????????# p ""#% | | ????????????????????????# """ F"# """" | | ?????????????############ """"" "# """" | | ?????????????# # ! """"" ""# """" | | ?????????????#""" # ]] # """ | | ??????????????"""" # """ """ # """ | | ??????????????"""" # "" "" """"" # "" | | ??????????????"""" # """ " """"" # %! | | ?????????????#"""" # # ! | | | ?????????????#"""" * #@ """ """ #"##### | | ?????????????# ! + """"" """"" ###???? | | ?????????????#"""" [% #% """"" """"" ##????? | | ?????????????#"""" /# #?????? | | ?????????????#"""" =# R #?????? | | ??????????????"""" # ####+#####?????? | | ??????????????"""" ########### #?????? | | ??????????????"""" #?????????# #?????? | | ?????????????? #?????????# " " " #?????? | | ?????????????############?????????# " " " #?????? | | ??????????????????????????????????# " " " #?????? | | ??????????????????????????????????# " " " #?????? | | ??????????????????????????????????# " " " #?????? | | ??????????????????????????????????# " " " #?????? | | ??????????????????????????????????# " " " #?????? | | ??????????????????????????????????# " " " #?????? | | ??????????????????????????????????# " " " #?????? | | ??????????????????????????????????# #?????? | | ??????????????????????????????????# #?????? | | ??????????????????????????????????# !! #?????? | | ??????????????????????????????????# ] #?????? | | ??????????????????????????????????# ! #?????? | | ??????????????????????????????????# #?????? | | ??????????????????????????????????# #?????? | | ??????????????????????????????????##########?????? | +----------------------------------------------------+ Best States ------------- Heat Dissipation 62 Energy Generation 24 Energy Capacity 310 Matter Stores 300 Matter Capacity 300 Sight Range 16 Terrain Scan Density 10 ECM Strength 1 Jamming Range 12 Armor Coverage 225 Resistance: KI 20 Resistance: TH 20 Resistance: EX 20 Resistance: EM 20 Resistance: I 20 Resistance: S 20 Resistance: P 20 Point Defense Rating 80 Melee Speed Boost 20 Evasion (%) 65 Targeting Accuracy 8 Offensive Hacking 20 Defensive Hacking 10 Item Schematics ----------------- Mni. Drone Bay | -7/Factory | Hacked Adv. Heat Sink | -6/Factory | Scanalyzed Robot Schematics ------------------ None Fabricated ------------ Nothing Alien Tech Used ----------------- None Achievements -------------- None Challenges ------------ None Game ------ Seed NetworkSiegeRay Manual? 0 Play Time 00:47:58 Cumulative 62.9 hours Start 2024.09.10 @ 16:58:33 End 2024.09.10 @ 17:50:40 Sessions 1 Manual Loads 0 Difficulty Adventurer Special Mode None Game No. 75 Rogue 13 Adventurer 62 Explorer 0 Win Type - Total 0 Types 0/0/0/0/0/0/0/0/0 Lore% 46 Gallery% 52 Achievement% 41 Wizard Run 0 Options --------- Layout 1 ASCII 0 Keyboard 0 Movement Mouse Keybinds 0 Fullscreen 1 Font 24/Smallcaps Map View 50x35 Zoom Use 0% Tactical HUD 0 Map Filters NONE Filters NONE Steam 1 RUN: 518ee5d0-4db6-4f64-b5d9-c269b670d97e